[Event "Titled Tuesday Blitz February 14 Early 2023"]
[White "Ansh M Shah"]
[Black "Fries-Nielsen, Jens Ove"]
[WhiteFideId "25033379"]
[BlackFideId "1400142"]
[WhiteElo "2171"]
[BlackElo "2377"]
[Result "0-1"]
[Round "04"]
[TimeControl "180+2"]
[Date "2023.02.15"]
[WhiteClock "0:02:13"]
[BlackClock "0:02:18"]

1. d4 {[%clk 0:02:58]}  Nf6 {[%clk 0:02:59]} 2. c4 {[%clk 0:02:59]}  c5 {[%clk 0:02:59]} 3. d5 {[%clk 0:02:59]}  e6 {[%clk 0:02:59]} 4. Nc3 {[%clk 0:02:57]}  exd5 {[%clk 0:03:00]} 5. cxd5 {[%clk 0:02:58]}  d6 {[%clk 0:03:00]} 6. g3 {[%clk 0:02:59]}  Na6 {[%clk 0:03:00]} 7. Bg2 {[%clk 0:03:00]}  Nc7 {[%clk 0:03:01]} 8. Bf4 {[%clk 0:03:00]}  b5 {[%clk 0:03:00]} 9. a3 {[%clk 0:03:00]}  Bb7 {[%clk 0:02:59]} 10. e4 {[%clk 0:02:57]}  Be7 {[%clk 0:02:59]} 11. Nge2 {[%clk 0:02:57]}  O-O {[%clk 0:02:59]} 12. f3 {[%clk 0:02:57]}  a5 {[%clk 0:02:57]} 13. O-O {[%clk 0:02:56]}  b4 {[%clk 0:02:57]} 14. Nb1 {[%clk 0:02:56]}  Nd7 {[%clk 0:02:56]} 15. Nd2 {[%clk 0:02:56]}  Ba6 {[%clk 0:02:56]} 16. Re1 {[%clk 0:02:56]}  Nb5 {[%clk 0:02:54]} 17. Qc2 {[%clk 0:02:54]}  Bf6 {[%clk 0:02:38]} 18. Nc4 {[%clk 0:02:46]}  Nd4 {[%clk 0:02:35]} 19. Nxd4 {[%clk 0:02:46]}  Bxd4+ {[%clk 0:02:35]} 20. Be3 {[%clk 0:02:46]}  Bxc4 {[%clk 0:02:34]} 21. Qxc4 {[%clk 0:02:46]}  Ne5 {[%clk 0:02:30]} 22. Qc2 {[%clk 0:02:42]}  Qb6 {[%clk 0:02:28]} 23. Bxd4 {[%clk 0:02:41]}  cxd4 {[%clk 0:02:28]} 24. Kh1 {[%clk 0:02:36]}  d3 {[%clk 0:02:25]} 25. Qd2 {[%clk 0:02:36]}  Qd4 {[%clk 0:02:23]} 26. Re3 {[%clk 0:02:33]}  bxa3 {[%clk 0:02:23]} 27. Rxa3 {[%clk 0:02:32]}  Rac8 {[%clk 0:02:21]} 28. f4 {[%clk 0:02:21]}  Rc2 {[%clk 0:02:19]} 29. Qe1 {[%clk 0:02:13]}  d2 {[%clk 0:02:18]} 30. Qd1 {[%clk 0:02:13]}  Rc1 {[%clk 0:02:18]} 0-1


[Site "https://www.chess.com"]

[Event "Titled Tuesday Blitz February 14 Early 2023"]
[White "Souleidis, Georgios"]
[Black "Kejna, Piotr"]
[WhiteFideId "4206827"]
[BlackFideId "21821704"]
[WhiteElo "2419"]
[BlackElo "2027"]
[Result "1/2-1/2"]
[Round "04"]
[TimeControl "180+2"]
[Date "2023.02.15"]
[WhiteClock "0:00:05"]
[BlackClock "0:00:06"]

1. e4 {[%clk 0:02:52]}  c5 {[%clk 0:02:59]} 2. Be2 {[%clk 0:02:52]}  d6 {[%clk 0:02:59]} 3. d3 {[%clk 0:02:52]}  Nc6 {[%clk 0:02:58]} 4. f4 {[%clk 0:02:53]}  g6 {[%clk 0:02:58]} 5. Nf3 {[%clk 0:02:52]}  Bg7 {[%clk 0:02:59]} 6. O-O {[%clk 0:02:52]}  Nf6 {[%clk 0:02:57]} 7. c3 {[%clk 0:02:53]}  O-O {[%clk 0:02:54]} 8. Kh1 {[%clk 0:02:53]}  b5 {[%clk 0:02:53]} 9. a3 {[%clk 0:02:53]}  Rb8 {[%clk 0:02:52]} 10. Be3 {[%clk 0:02:53]}  a5 {[%clk 0:02:51]} 11. Nbd2 {[%clk 0:02:52]}  b4 {[%clk 0:02:44]} 12. d4 {[%clk 0:02:52]}  cxd4 {[%clk 0:02:22]} 13. cxd4 {[%clk 0:02:52]}  d5 {[%clk 0:02:19]} 14. e5 {[%clk 0:02:48]}  Nd7 {[%clk 0:01:54]} 15. Rc1 {[%clk 0:02:43]}  Rb6 {[%clk 0:01:42]} 16. a4 {[%clk 0:02:33]}  e6 {[%clk 0:01:32]} 17. Nb3 {[%clk 0:02:30]}  Ba6 {[%clk 0:01:24]} 18. Bxa6 {[%clk 0:02:21]}  Rxa6 {[%clk 0:01:24]} 19. Qd3 {[%clk 0:02:21]}  Qa8 {[%clk 0:01:18]} 20. g4 {[%clk 0:02:17]}  Ne7 {[%clk 0:00:58]} 21. Rc7 {[%clk 0:02:09]}  Ra7 {[%clk 0:00:55]} 22. Rfc1 {[%clk 0:02:05]}  Rc8 {[%clk 0:00:47]} 23. Rxc8+ {[%clk 0:01:58]}  Nxc8 {[%clk 0:00:48]} 24. f5 {[%clk 0:01:54]}  Ncb6 {[%clk 0:00:39]} 25. Nc5 {[%clk 0:01:30]}  Nxc5 {[%clk 0:00:35]} 26. dxc5 {[%clk 0:01:31]}  Nc4 {[%clk 0:00:29]} 27. Bd4 {[%clk 0:01:29]}  Rc7 {[%clk 0:00:21]} 28. b3 {[%clk 0:01:18]}  Nb6 {[%clk 0:00:20]} 29. Qe3 {[%clk 0:00:30]}  Nd7 {[%clk 0:00:19]} 30. fxe6 {[%clk 0:00:23]}  fxe6 {[%clk 0:00:20]} 31. Ng5 {[%clk 0:00:23]}  Rc6 {[%clk 0:00:19]} 32. Rf1 {[%clk 0:00:23]}  Qc8 {[%clk 0:00:17]} 33. h4 {[%clk 0:00:20]}  Nxc5 {[%clk 0:00:17]} 34. h5 {[%clk 0:00:19]}  Nd7 {[%clk 0:00:14]} 35. hxg6 {[%clk 0:00:17]}  hxg6 {[%clk 0:00:14]} 36. Qh3 {[%clk 0:00:17]}  Nf8 {[%clk 0:00:13]} 37. Rxf8+ {[%clk 0:00:08]}  Kxf8 {[%clk 0:00:12]} 38. Qf3+ {[%clk 0:00:08]}  Kg8 {[%clk 0:00:11]} 39. Qf7+ {[%clk 0:00:07]}  Kh8 {[%clk 0:00:12]} 40. Qxg6 {[%clk 0:00:07]}  Rc1+ {[%clk 0:00:12]} 41. Bg1 {[%clk 0:00:07]}  Rxg1+ {[%clk 0:00:08]} 42. Kxg1 {[%clk 0:00:08]}  Qc1+ {[%clk 0:00:08]} 43. Kg2 {[%clk 0:00:09]}  Qd2+ {[%clk 0:00:08]} 44. Kf3 {[%clk 0:00:02]}  Qd1+ {[%clk 0:00:07]} 45. Kf2 {[%clk 0:00:01]}  Qd2+ {[%clk 0:00:06]} 46. Kg1 {[%clk 0:00:02]}  Qe1+ {[%clk 0:00:06]} 47. Kg2 {[%clk 0:00:02]}  Qe2+ {[%clk 0:00:06]} 48. Kh1 {[%clk 0:00:03]}  Qd1+ {[%clk 0:00:05]} 49. Kg2 {[%clk 0:00:03]}  Qxg4+ {[%clk 0:00:05]} 50. Kf2 {[%clk 0:00:04]}  Qf4+ {[%clk 0:00:04]} 51. Kg2 {[%clk 0:00:05]}  Qg4+ {[%clk 0:00:04]} 52. Kf1 {[%clk 0:00:05]}  Qf4+ {[%clk 0:00:04]} 53. Kg2 {[%clk 0:00:05]}  Qd2+ {[%clk 0:00:04]} 54. Kh1 {[%clk 0:00:05]}  Qe1+ {[%clk 0:00:04]} 55. Kg2 {[%clk 0:00:06]}  Qe2+ {[%clk 0:00:04]} 56. Kh3 {[%clk 0:00:07]}  Qe3+ {[%clk 0:00:05]} 57. Kh4 {[%clk 0:00:07]}  Qf4+ {[%clk 0:00:05]} 58. Kh5 {[%clk 0:00:06]}  Qh2+ {[%clk 0:00:05]} 59. Kg4 {[%clk 0:00:07]}  Qg2+ {[%clk 0:00:05]} 60. Kh5 {[%clk 0:00:07]}  Qh2+ {[%clk 0:00:06]} 61. Kg4 {[%clk 0:00:08]}  Qe2+ {[%clk 0:00:06]} 62. Kh4 {[%clk 0:00:08]}  Qf2+ {[%clk 0:00:05]} 63. Kg4 {[%clk 0:00:09]}  Qg2+ {[%clk 0:00:05]} 64. Kh4 {[%clk 0:00:09]}  Qh2+ {[%clk 0:00:06]} 65. Kg4 {[%clk 0:00:05]} 1/2-1/2


[Site "https://www.chess.com"]

[Event "Titled Tuesday Blitz February 14 Early 2023"]
[White "Silvestre, Christian"]
[Black "Tologon tegin, Semetei"]
[WhiteFideId "30956269"]
[BlackFideId "13800574"]
[WhiteElo "1942"]
[BlackElo "2372"]
[Result "0-1"]
[Round "04"]
[TimeControl "180+2"]
[Date "2023.02.15"]
[WhiteClock "0:00:08"]
[BlackClock "0:00:13"]

1. e4 {[%clk 0:03:00]}  c5 {[%clk 0:02:33]} 2. Nc3 {[%clk 0:02:33]}  Nc6 {[%clk 0:02:29]} 3. f4 {[%clk 0:01:43]}  e6 {[%clk 0:02:27]} 4. d3 {[%clk 0:01:43]}  d5 {[%clk 0:02:27]} 5. e5 {[%clk 0:01:43]}  b5 {[%clk 0:02:21]} 6. Nf3 {[%clk 0:01:40]}  b4 {[%clk 0:02:18]} 7. Ne2 {[%clk 0:01:39]}  Nge7 {[%clk 0:02:15]} 8. g3 {[%clk 0:01:38]}  Nf5 {[%clk 0:02:13]} 9. Bg2 {[%clk 0:01:38]}  Be7 {[%clk 0:02:13]} 10. O-O {[%clk 0:01:38]}  h5 {[%clk 0:02:08]} 11. a3 {[%clk 0:01:33]}  h4 {[%clk 0:01:56]} 12. g4 {[%clk 0:01:32]}  h3 {[%clk 0:01:53]} 13. gxf5 {[%clk 0:01:17]}  hxg2 {[%clk 0:01:52]} 14. Kxg2 {[%clk 0:01:16]}  exf5 {[%clk 0:01:51]} 15. axb4 {[%clk 0:01:11]}  Nxb4 {[%clk 0:01:51]} 16. c3 {[%clk 0:01:06]}  Nc6 {[%clk 0:01:51]} 17. d4 {[%clk 0:01:05]}  a5 {[%clk 0:01:40]} 18. dxc5 {[%clk 0:01:04]}  Bxc5 {[%clk 0:01:39]} 19. Ned4 {[%clk 0:01:04]}  Nxd4 {[%clk 0:01:33]} 20. cxd4 {[%clk 0:01:04]}  Bb4 {[%clk 0:01:23]} 21. Bd2 {[%clk 0:00:58]}  Ba6 {[%clk 0:01:19]} 22. Qa4+ {[%clk 0:00:41]}  Kf8 {[%clk 0:01:10]} 23. Bxb4+ {[%clk 0:00:40]}  axb4 {[%clk 0:01:08]} 24. Qxb4+ {[%clk 0:00:40]}  Kg8 {[%clk 0:01:08]} 25. Rfc1 {[%clk 0:00:36]}  Rh6 {[%clk 0:00:58]} 26. Qc5 {[%clk 0:00:22]}  Rg6+ {[%clk 0:00:51]} 27. Kf2 {[%clk 0:00:20]}  Rg4 {[%clk 0:00:44]} 28. Qc7 {[%clk 0:00:19]}  Qxc7 {[%clk 0:00:25]} 29. Rxc7 {[%clk 0:00:20]}  Rxf4 {[%clk 0:00:24]} 30. Rc6 {[%clk 0:00:18]}  Rxf3+ {[%clk 0:00:22]} 31. Kxf3 {[%clk 0:00:14]}  Be2+ {[%clk 0:00:23]} 32. Kxe2 {[%clk 0:00:14]}  Rxa1 {[%clk 0:00:23]} 33. Rc8+ {[%clk 0:00:13]}  Kh7 {[%clk 0:00:23]} 34. Rc5 {[%clk 0:00:09]}  Rb1 {[%clk 0:00:20]} 35. Rb5 {[%clk 0:00:09]}  g5 {[%clk 0:00:20]} 36. Kf2 {[%clk 0:00:06]}  Kg6 {[%clk 0:00:19]} 37. Kg2 {[%clk 0:00:06]}  Kh5 {[%clk 0:00:19]} 38. Rb7 {[%clk 0:00:04]}  Kg4 {[%clk 0:00:18]} 39. Rxf7 {[%clk 0:00:03]}  Rxb2+ {[%clk 0:00:18]} 40. Kg1 {[%clk 0:00:04]}  f4 {[%clk 0:00:17]} 41. Rg7 {[%clk 0:00:03]}  Rd2 {[%clk 0:00:16]} 42. e6 {[%clk 0:00:03]}  Rxd4 {[%clk 0:00:16]} 43. e7 {[%clk 0:00:03]}  Re4 {[%clk 0:00:17]} 44. Kf2 {[%clk 0:00:04]}  d4 {[%clk 0:00:17]} 45. Rh7 {[%clk 0:00:04]}  Re3 {[%clk 0:00:16]} 46. e8=Q {[%clk 0:00:04]}  Rxe8 {[%clk 0:00:15]} 47. Rd7 {[%clk 0:00:04]}  Re4 {[%clk 0:00:15]} 48. Kg2 {[%clk 0:00:04]}  f3+ {[%clk 0:00:14]} 49. Kf1 {[%clk 0:00:05]}  Kf4 {[%clk 0:00:13]} 50. Kf2 {[%clk 0:00:06]}  Re2+ {[%clk 0:00:12]} 51. Kf1 {[%clk 0:00:06]}  Rd2 {[%clk 0:00:13]} 52. Kg1 {[%clk 0:00:06]}  g4 {[%clk 0:00:13]} 53. Kf1 {[%clk 0:00:06]}  Rxh2 {[%clk 0:00:12]} 54. Rf7+ {[%clk 0:00:06]}  Kg3 {[%clk 0:00:12]} 55. Ke1 {[%clk 0:00:04]}  Rh1+ {[%clk 0:00:10]} 56. Kd2 {[%clk 0:00:04]}  f2 {[%clk 0:00:10]} 57. Ke2 {[%clk 0:00:04]}  f1=Q+ {[%clk 0:00:11]} 58. Rxf1 {[%clk 0:00:04]}  Rxf1 {[%clk 0:00:12]} 59. Kxf1 {[%clk 0:00:05]}  Kf3 {[%clk 0:00:12]} 60. Kg1 {[%clk 0:00:05]}  g3 {[%clk 0:00:12]} 61. Kf1 {[%clk 0:00:06]}  g2+ {[%clk 0:00:12]} 62. Kg1 {[%clk 0:00:07]}  d3 {[%clk 0:00:13]} 63. Kh2 {[%clk 0:00:07]}  d2 {[%clk 0:00:13]} 64. Kh3 {[%clk 0:00:07]}  d1=Q {[%clk 0:00:13]} 65. Kh4 {[%clk 0:00:08]}  Qd5 {[%clk 0:00:13]} 66. Kh3 {[%clk 0:00:08]}  Qh5# {[%clk 0:00:13]} 0-1


[Site "https://www.chess.com"]

[Event "Titled Tuesday Blitz February 14 Early 2023"]
[White "Saravana, Krishnan P."]
[Black "Iljin, Timofey"]
[WhiteFideId "5018382"]
[BlackFideId "14110180"]
[WhiteElo "2284"]
[BlackElo "2329"]
[Result "0-1"]
[Round "04"]
[TimeControl "180+2"]
[Date "2023.02.15"]
[WhiteClock "0:00:23"]
[BlackClock "0:00:09"]

1. e4 {[%clk 0:02:54]}  e5 {[%clk 0:02:59]} 2. Nf3 {[%clk 0:02:53]}  Nc6 {[%clk 0:02:59]} 3. Bb5 {[%clk 0:02:53]}  a6 {[%clk 0:02:55]} 4. Ba4 {[%clk 0:02:53]}  Nf6 {[%clk 0:02:55]} 5. O-O {[%clk 0:02:52]}  b5 {[%clk 0:02:56]} 6. Bb3 {[%clk 0:02:52]}  Bc5 {[%clk 0:02:56]} 7. a4 {[%clk 0:02:51]}  Bb7 {[%clk 0:02:54]} 8. d3 {[%clk 0:02:51]}  d6 {[%clk 0:02:54]} 9. Bg5 {[%clk 0:02:48]}  h6 {[%clk 0:02:53]} 10. Bxf6 {[%clk 0:02:47]}  Qxf6 {[%clk 0:02:53]} 11. Bd5 {[%clk 0:02:47]}  O-O {[%clk 0:02:45]} 12. Nc3 {[%clk 0:02:46]}  b4 {[%clk 0:02:45]} 13. Ne2 {[%clk 0:02:45]}  a5 {[%clk 0:02:35]} 14. c3 {[%clk 0:02:43]}  Rab8 {[%clk 0:02:31]} 15. d4 {[%clk 0:02:21]}  exd4 {[%clk 0:02:28]} 16. cxd4 {[%clk 0:02:19]}  Bb6 {[%clk 0:02:27]} 17. Rc1 {[%clk 0:02:18]}  Ne7 {[%clk 0:02:23]} 18. Bxb7 {[%clk 0:02:16]}  Rxb7 {[%clk 0:02:24]} 19. Ng3 {[%clk 0:02:07]}  Re8 {[%clk 0:02:12]} 20. Re1 {[%clk 0:02:05]}  Ng6 {[%clk 0:01:54]} 21. Nh5 {[%clk 0:02:01]}  Qe6 {[%clk 0:01:45]} 22. h3 {[%clk 0:01:59]}  c5 {[%clk 0:01:40]} 23. d5 {[%clk 0:01:57]}  Qe7 {[%clk 0:01:34]} 24. Qd3 {[%clk 0:01:56]}  Ne5 {[%clk 0:01:30]} 25. Nxe5 {[%clk 0:01:55]}  Qxe5 {[%clk 0:01:31]} 26. Ng3 {[%clk 0:01:42]}  Qxb2 {[%clk 0:01:19]} 27. Nf5 {[%clk 0:01:38]}  Qe5 {[%clk 0:00:58]} 28. g3 {[%clk 0:01:33]}  Kh7 {[%clk 0:00:56]} 29. Kg2 {[%clk 0:01:33]}  g6 {[%clk 0:00:55]} 30. f4 {[%clk 0:01:33]}  Qf6 {[%clk 0:00:49]} 31. Nh4 {[%clk 0:01:29]}  Bc7 {[%clk 0:00:36]} 32. Nf3 {[%clk 0:01:25]}  b3 {[%clk 0:00:34]} 33. Qa6 {[%clk 0:01:21]}  Rb6 {[%clk 0:00:28]} 34. Qa7 {[%clk 0:01:20]}  Re7 {[%clk 0:00:23]} 35. e5 {[%clk 0:01:14]}  dxe5 {[%clk 0:00:23]} 36. fxe5 {[%clk 0:01:14]}  Bxe5 {[%clk 0:00:22]} 37. Qxa5 {[%clk 0:01:13]}  Bc7 {[%clk 0:00:18]} 38. Rf1 {[%clk 0:01:06]}  b2 {[%clk 0:00:18]} 39. Rb1 {[%clk 0:01:05]}  Re2+ {[%clk 0:00:18]} 40. Kh1 {[%clk 0:00:47]}  Qf5 {[%clk 0:00:15]} 41. Ng5+ {[%clk 0:00:33]}  Qxg5 {[%clk 0:00:15]} 42. Rxf7+ {[%clk 0:00:33]}  Kg8 {[%clk 0:00:13]} 43. Rbf1 {[%clk 0:00:30]}  Qxd5+ {[%clk 0:00:13]} 44. R7f3 {[%clk 0:00:27]}  b1=Q {[%clk 0:00:10]} 45. Qa8+ {[%clk 0:00:23]}  Qxa8 {[%clk 0:00:09]} 0-1


[Site "https://www.chess.com"]

[Event "Titled Tuesday Blitz February 14 Early 2023"]
[White "Demin, Vladimir"]
[Black "Titichoca Daza, Daniel"]
[WhiteFideId "4167457"]
[BlackFideId "3309550"]
[WhiteElo "2430"]
[BlackElo "2180"]
[Result "1-0"]
[Round "04"]
[TimeControl "180+2"]
[Date "2023.02.15"]
[WhiteClock "0:01:46"]
[BlackClock "0:00:55"]

1. e4 {[%clk 0:03:00]}  c6 {[%clk 0:02:59]} 2. d4 {[%clk 0:03:00]}  d5 {[%clk 0:03:00]} 3. e5 {[%clk 0:03:01]}  Bf5 {[%clk 0:03:00]} 4. Ne2 {[%clk 0:03:01]}  e6 {[%clk 0:02:52]} 5. Ng3 {[%clk 0:03:02]}  Bg6 {[%clk 0:02:53]} 6. h4 {[%clk 0:03:02]}  h6 {[%clk 0:02:53]} 7. h5 {[%clk 0:03:03]}  Bh7 {[%clk 0:02:54]} 8. Bd3 {[%clk 0:03:04]}  Bxd3 {[%clk 0:02:54]} 9. cxd3 {[%clk 0:03:05]}  Be7 {[%clk 0:02:50]} 10. Qg4 {[%clk 0:02:40]}  Kf8 {[%clk 0:02:39]} 11. f4 {[%clk 0:02:35]}  f5 {[%clk 0:02:33]} 12. Nxf5 {[%clk 0:02:35]}  exf5 {[%clk 0:02:28]} 13. Qxf5+ {[%clk 0:02:36]}  Nf6 {[%clk 0:02:25]} 14. exf6 {[%clk 0:02:27]}  Bxf6 {[%clk 0:02:26]} 15. Nd2 {[%clk 0:02:23]}  Na6 {[%clk 0:02:05]} 16. Nf3 {[%clk 0:02:21]}  Qc8 {[%clk 0:02:00]} 17. Qg6 {[%clk 0:02:16]}  Qe8+ {[%clk 0:01:58]} 18. Kf2 {[%clk 0:02:11]}  Qxg6 {[%clk 0:01:53]} 19. hxg6 {[%clk 0:02:12]}  Nb4 {[%clk 0:01:53]} 20. Bd2 {[%clk 0:02:08]}  Nxd3+ {[%clk 0:01:44]} 21. Ke2 {[%clk 0:02:08]}  Nxb2 {[%clk 0:01:43]} 22. Rab1 {[%clk 0:02:06]}  Nc4 {[%clk 0:01:42]} 23. Rxb7 {[%clk 0:02:05]}  Re8+ {[%clk 0:01:31]} 24. Ne5 {[%clk 0:02:05]}  h5 {[%clk 0:01:24]} 25. Kd3 {[%clk 0:02:02]}  Nd6 {[%clk 0:01:24]} 26. Bb4 {[%clk 0:01:59]}  Be7 {[%clk 0:01:23]} 27. Bxd6 {[%clk 0:01:57]}  Bxd6 {[%clk 0:01:22]} 28. Nf7 {[%clk 0:01:56]}  Bxf4 {[%clk 0:01:09]} 29. Nxh8 {[%clk 0:01:56]}  Re3+ {[%clk 0:01:10]} 30. Kc2 {[%clk 0:01:56]}  Re2+ {[%clk 0:01:10]} 31. Kd3 {[%clk 0:01:54]}  Re3+ {[%clk 0:01:10]} 32. Kc2 {[%clk 0:01:53]}  Re2+ {[%clk 0:01:11]} 33. Kb3 {[%clk 0:01:53]}  Re3+ {[%clk 0:01:11]} 34. Kb2 {[%clk 0:01:51]}  Re2+ {[%clk 0:01:10]} 35. Kb1 {[%clk 0:01:51]}  Ke8 {[%clk 0:01:08]} 36. Nf7 {[%clk 0:01:48]}  Rxg2 {[%clk 0:00:58]} 37. Rxh5 {[%clk 0:01:48]}  Rg1+ {[%clk 0:00:54]} 38. Kc2 {[%clk 0:01:47]}  Rg2+ {[%clk 0:00:55]} 39. Kb3 {[%clk 0:01:46]}  Rg3+ {[%clk 0:00:55]} 40. Ka4 {[%clk 0:01:46]} 1-0


[Site "https://www.chess.com"]

[Event "Titled Tuesday Blitz February 14 Early 2023"]
[White "Miszler, Levente"]
[Black "Sourath Biswas"]
[WhiteFideId "763276"]
[BlackFideId "35091484"]
[WhiteElo "2271"]
[BlackElo "2281"]
[Result "0-1"]
[Round "04"]
[TimeControl "180+2"]
[Date "2023.02.15"]
[WhiteClock "0:00:05"]
[BlackClock "0:00:16"]

1. Nf3 {[%clk 0:03:00]}  Nf6 {[%clk 0:03:00]} 2. c4 {[%clk 0:02:59]}  g6 {[%clk 0:02:59]} 3. g3 {[%clk 0:03:00]}  Bg7 {[%clk 0:03:00]} 4. Bg2 {[%clk 0:03:01]}  O-O {[%clk 0:03:00]} 5. O-O {[%clk 0:03:01]}  d6 {[%clk 0:03:00]} 6. Nc3 {[%clk 0:03:01]}  c5 {[%clk 0:03:00]} 7. d3 {[%clk 0:03:02]}  Nc6 {[%clk 0:02:58]} 8. a3 {[%clk 0:03:02]}  e5 {[%clk 0:02:56]} 9. Rb1 {[%clk 0:03:02]}  Re8 {[%clk 0:02:56]} 10. Ne1 {[%clk 0:02:59]}  Bf5 {[%clk 0:02:54]} 11. Nc2 {[%clk 0:02:57]}  e4 {[%clk 0:02:52]} 12. Ne3 {[%clk 0:02:56]}  exd3 {[%clk 0:02:53]} 13. exd3 {[%clk 0:02:45]}  Bd7 {[%clk 0:02:53]} 14. b4 {[%clk 0:02:43]}  Rb8 {[%clk 0:02:53]} 15. Ncd5 {[%clk 0:02:38]}  Nxd5 {[%clk 0:02:41]} 16. Nxd5 {[%clk 0:02:39]}  b6 {[%clk 0:02:36]} 17. Be3 {[%clk 0:02:29]}  Nd4 {[%clk 0:02:26]} 18. Bxd4 {[%clk 0:02:28]}  Bxd4 {[%clk 0:02:25]} 19. Qd2 {[%clk 0:02:27]}  Kg7 {[%clk 0:02:21]} 20. Rbe1 {[%clk 0:02:25]}  Re6 {[%clk 0:02:22]} 21. Rxe6 {[%clk 0:02:14]}  fxe6 {[%clk 0:02:18]} 22. Ne3 {[%clk 0:02:12]}  b5 {[%clk 0:02:16]} 23. Nc2 {[%clk 0:02:10]}  Bf6 {[%clk 0:02:15]} 24. Rd1 {[%clk 0:02:03]}  Qb6 {[%clk 0:01:41]} 25. Bh3 {[%clk 0:01:46]}  Ra8 {[%clk 0:01:28]} 26. d4 {[%clk 0:01:34]}  cxb4 {[%clk 0:01:22]} 27. c5 {[%clk 0:01:34]}  Qc7 {[%clk 0:01:07]} 28. axb4 {[%clk 0:01:31]}  a5 {[%clk 0:01:07]} 29. d5 {[%clk 0:01:17]}  dxc5 {[%clk 0:00:51]} 30. dxe6 {[%clk 0:01:17]}  Be8 {[%clk 0:00:51]} 31. bxc5 {[%clk 0:01:12]}  Qxc5 {[%clk 0:00:49]} 32. Ne3 {[%clk 0:01:11]}  b4 {[%clk 0:00:38]} 33. Nd5 {[%clk 0:01:10]}  Rd8 {[%clk 0:00:38]} 34. Bg2 {[%clk 0:00:40]}  Bc6 {[%clk 0:00:27]} 35. Qd3 {[%clk 0:00:20]}  Bxd5 {[%clk 0:00:25]} 36. Bxd5 {[%clk 0:00:21]}  a4 {[%clk 0:00:25]} 37. Qa6 {[%clk 0:00:19]}  a3 {[%clk 0:00:21]} 38. Qb7+ {[%clk 0:00:18]}  Qe7 {[%clk 0:00:20]} 39. Qb5 {[%clk 0:00:16]}  a2 {[%clk 0:00:16]} 40. Rc1 {[%clk 0:00:09]}  a1=Q {[%clk 0:00:16]} 41. Rxa1 {[%clk 0:00:09]}  Bxa1 {[%clk 0:00:17]} 42. Kg2 {[%clk 0:00:09]}  Bf6 {[%clk 0:00:17]} 43. Bc4 {[%clk 0:00:09]}  Qd6 {[%clk 0:00:18]} 44. h4 {[%clk 0:00:08]}  Be7 {[%clk 0:00:18]} 45. Qb7 {[%clk 0:00:07]}  Rb8 {[%clk 0:00:16]} 46. Qa7 {[%clk 0:00:06]}  b3 {[%clk 0:00:15]} 47. h5 {[%clk 0:00:03]}  b2 {[%clk 0:00:15]} 48. h6+ {[%clk 0:00:04]}  Kxh6 {[%clk 0:00:15]} 49. Qe3+ {[%clk 0:00:05]}  Kg7 {[%clk 0:00:16]} 50. Qc3+ {[%clk 0:00:05]}  Bf6 {[%clk 0:00:16]} 51. Qa3 {[%clk 0:00:05]}  Qxa3 {[%clk 0:00:16]} 0-1


[Site "https://www.chess.com"]

[Event "Titled Tuesday Blitz February 14 Early 2023"]
[White "Kopczynski, Michal"]
[Black "Lorenzo De La Riva, Lazaro"]
[WhiteFideId "1124200"]
[BlackFideId "2268809"]
[WhiteElo "2225"]
[BlackElo "2404"]
[Result "1-0"]
[Round "04"]
[TimeControl "180+2"]
[Date "2023.02.15"]
[WhiteClock "0:01:30"]
[BlackClock "0:00:25"]

1. e4 {[%clk 0:03:00]}  c6 {[%clk 0:02:42]} 2. d4 {[%clk 0:02:59]}  d5 {[%clk 0:02:40]} 3. e5 {[%clk 0:03:00]}  c5 {[%clk 0:02:39]} 4. dxc5 {[%clk 0:02:59]}  e6 {[%clk 0:02:35]} 5. Be3 {[%clk 0:02:59]}  Nd7 {[%clk 0:02:33]} 6. f4 {[%clk 0:02:58]}  Bxc5 {[%clk 0:02:25]} 7. Bxc5 {[%clk 0:02:58]}  Nxc5 {[%clk 0:02:26]} 8. Nf3 {[%clk 0:02:58]}  Ne7 {[%clk 0:02:19]} 9. Nc3 {[%clk 0:02:58]}  a6 {[%clk 0:02:19]} 10. Qd2 {[%clk 0:02:51]}  Bd7 {[%clk 0:02:14]} 11. O-O-O {[%clk 0:02:51]}  Rc8 {[%clk 0:02:13]} 12. g4 {[%clk 0:02:50]}  Qa5 {[%clk 0:02:07]} 13. Nd4 {[%clk 0:02:47]}  Na4 {[%clk 0:01:57]} 14. Nxa4 {[%clk 0:02:37]}  Qxa4 {[%clk 0:01:55]} 15. Kb1 {[%clk 0:02:33]}  Nc6 {[%clk 0:01:37]} 16. Nb3 {[%clk 0:02:32]}  Nb4 {[%clk 0:01:35]} 17. a3 {[%clk 0:02:17]}  Nxc2 {[%clk 0:01:32]} 18. Ka2 {[%clk 0:02:02]}  Qe4 {[%clk 0:01:06]} 19. Bd3 {[%clk 0:01:57]}  Qf3 {[%clk 0:00:51]} 20. Bxc2 {[%clk 0:01:55]}  Qxg4 {[%clk 0:00:51]} 21. Rhg1 {[%clk 0:01:53]}  Qh4 {[%clk 0:00:51]} 22. Rxg7 {[%clk 0:01:50]}  Bb5 {[%clk 0:00:51]} 23. Nd4 {[%clk 0:01:45]}  Bc4+ {[%clk 0:00:38]} 24. Kb1 {[%clk 0:01:43]}  Qh6 {[%clk 0:00:30]} 25. Rdg1 {[%clk 0:01:42]}  Kf8 {[%clk 0:00:29]} 26. Qb4+ {[%clk 0:01:32]}  Ke8 {[%clk 0:00:29]} 27. Rg8+ {[%clk 0:01:29]}  Rxg8 {[%clk 0:00:25]} 28. Rxg8+ {[%clk 0:01:30]}  Kd7 {[%clk 0:00:25]} 29. Qd6# {[%clk 0:01:30]} 1-0


[Site "https://www.chess.com"]